Cogmind - Beta 13 X1 @@@ ROGUE MODE // 2023.07.23 @ 23:54:21 Player: Runia Result: Destroyed by P-70 Sage with High-powered Shock Rifle Performance ------------- Evolutions (6) 3000 Regions Visited (27) 5400 Robots Destroyed (394) 1970 Value Destroyed (19546) 19546 Prototype IDs (21) 420 Alien Tech Used (0) 0 Bonus (11590) 11590 TOTAL SCORE: 41926 Bonus ------- High Alert Combat Kills 2626 Follower Combat Kills 4744 Entered Garrisons 1400 Used RIF Installer 4500 Built Enhanced Grunts 300 A7 Reached Mainframe 300 Met R17 at Cetus 500 Friendly Fire -2780 Cogmind --------- Core Integrity 0/1150 Matter 168/300 Energy 325/325 System Corruption 23% Temperature Cool (13) Movement Hovering (1560) Ox19 Location -4/Factory Parts ------- > --- POWER (2) -------- Reinforced Antimatter Reactor (fused) > --- PROPULSION (4) --- Linear Gravjet > --- UTILITY (11) ----- Cargo Storage Unit Experimental Targeting Computer > --- WEAPON (2) ------- Neutron Cannon > --- INVENTORY (30) --- Advanced Energy Well (500) Advanced Signal Interpreter Authchip [R/NC] Relay Coupler [Sentry] (22) Relay Coupler [Proto] (9) Relay Coupler [Proto] (9) Relay Coupler [Proto] (9) Relay Coupler [Proto] (9) Relay Coupler [Proto] (9) Advanced System Restoration Module HERF Cannon HERF Cannon Mini Grenade Launcher Improved Remote Datajack Force Lance Peak State ------------ > --- POWER ------------ Reinforced Deuterium Engine Quantum Reactor > --- PROPULSION ------- Centrium Heavy Treads Centrium Heavy Treads > --- UTILITY ---------- Advanced Coolant Injector Cargo Storage Unit Experimental Targeting Computer Quantum Capacitor Centrium Medium Armor Plating Improved Force Field Relay Coupler [Swarmer] Relay Coupler [Grunt] Relay Coupler [Hunter] > --- WEAPON ----------- Nova Cannon Remote Datajack > --- INVENTORY -------- Improved Heavy Treads Improved Heavy Treads Advanced Cooling System Advanced Energy Well Centrium Medium Armor Plating Centrium Medium Armor Plating Improved Force Field Improved Hacking Suite Authchip [R/NC] Relay Coupler [NC] Relay Coupler [NC] Relay Coupler [Brawler] Relay Coupler [Sentry] Relay Coupler [Sentry] Relay Coupler [Proto] Relay Coupler [Proto] Relay Coupler [Proto] Relay Coupler [Proto] Relay Coupler [Proto] Proton Cannon Neutron Cannon Nova Cannon Nova Cannon Mini Grenade Launcher Remote Datajack Force Lance [Rating: 134] Favorites ----------- Power Improved Deuterium Engine Engine Improved Deuterium Engine Power Core Nuclear Core Reactor Quantum Reactor Propulsion Armored Wheel Treads Centrium Heavy Treads Leg Flexi-carbon Leg Wheel Armored Wheel Hover Unit Linear Gravjet Utility Cargo Storage Unit Device Improved Cooling System Storage Cargo Storage Unit Processor Advanced Targeting Computer Hackware Relay Coupler [Grunt] Protection Centrium Medium Armor Plating Weapon Autogun Energy Gun Quantum Rifle Energy Cannon Long-range Proton Cannon Ballistic Gun Autogun Launcher Mini Grenade Launcher Special Weapon Improved Remote Datajack Impact Weapon Heavy Hammer Slashing Weapon Ripper Piercing Weapon Lance Special Melee Weapon Improved Datajack Build | -11 -10 -10 -9 -9 -9 -8 -8 -8 -8 -8 -7 -7 -7 -7 -6 -6 -6 -6 -6 -6 -6 -6 -5 -5 -4 -4 -4 ------- Run | Jun Mat Min Mat Min Exi Min Mat Gar Mat Gar Fac Gar Fac Gar Fac Gar Fac Ext Cet Arc Hub Gar Fac Gar Fac Was Fac Slots Evolved 12 | . . . 2 . . . 2 . . . 2 . . . 2 . . . . . . . 2 . 2 . . Power 1 | . . . . . . . . . . . 1 . . . . . . . . . . . . . . . . Propulsion 2 | . . . . . . . 1 . . . . . . . 1 . . . . . . . . . . . . Utility 9 | . . . 2 . . . 1 . . . 1 . . . 1 . . . . . . . 2 . 2 . . Weapon . | . . . . . . . . . . . . . . . . . . . . . . . . . . . . Parts Attached 482 | 3 11 6 25 5 . 8 33 16 . 21 38 30 11 17 18 20 9 47 7 10 10 35 . 25 25 12 40 Power 42 | . 1 2 3 1 . 1 2 . . 1 7 1 2 2 1 1 . 5 1 . 2 3 . . 3 2 1 Engine 26 | . . 1 3 1 . 1 2 . . 1 4 1 2 1 . . . 5 . . 2 2 . . . . . Core 6 | . 1 1 . . . . . . . . 3 . . . . . . . . . . . . . 1 . . Reactor 10 | . . . . . . . . . . . . . . 1 1 1 . . 1 . . 1 . . 2 2 1 Propulsion 59 | 2 1 1 5 . . . 7 2 . 3 2 6 3 . 3 3 . 5 3 . . 2 . . 2 . 9 Treads 35 | 2 . 1 2 . . . 4 2 . 2 1 2 1 . 1 3 . 3 3 . . 2 . . 2 . 4 Leg 1 | . . . . . . . . . . . . . . . . . . . . . . . . . . . 1 Wheel 20 | . 1 . 3 . . . 3 . . 1 1 4 2 . 2 . . 2 . . . . . . . . 1 Hover 3 | . . . . . . . . . . . . . . . . . . . . . . . . . . . 3 Flight . | . . . . . . . . . . . . . . . . . . . . . . . . . . . . Utility 158 | . 3 1 6 2 . 1 6 5 . 5 11 9 2 7 9 9 3 9 . 7 4 18 . 12 12 8 9 Device 63 | . 1 . 3 . . 1 2 2 . 5 2 2 2 1 2 1 1 3 . 4 1 8 . 4 6 5 7 Storage 5 | . 2 . . . . . . 1 . . . . . . . . . . . . . 1 . 1 . . . Processor 5 | . . . 1 1 . . 2 . . . . . . . . . . . . . . 1 . . . . . Hackware 50 | . . . . . . . . 2 . . 7 2 . 5 5 5 2 2 . 2 1 5 . 6 5 1 . Protection 35 | . . 1 2 1 . . 2 . . . 2 5 . 1 2 3 . 4 . 1 2 3 . 1 1 2 2 Artifact . | . . . . . . . . . . . . . . . . . . . . . . . . . . . . Weapon 223 | 1 6 2 11 2 . 6 18 9 . 12 18 14 4 8 5 7 6 28 3 3 4 12 . 13 8 2 21 Energy Gun 5 | . 1 . . . . . . . . . . . . . . 1 . . 3 . . . . . . . . Energy Cannon 80 | . . . . . . . 4 5 . 5 7 2 1 2 2 1 3 10 . 1 3 5 . 7 6 . 16 Ballistic Gun 26 | 1 3 1 6 1 . 4 6 . . 1 . . . . . . . . . 1 . 1 . 1 . . . Ballistic Cannon . | . . . . . . . . . . . . . . . . . . . . . . . . . . . . Launcher 38 | . 2 1 4 1 . 2 5 3 . 3 2 4 . 2 . . . 4 . . 1 . . . . . 4 Special Weapon 35 | . . . . . . . . . . . 5 3 1 3 2 2 3 6 . . . 4 . 3 1 1 1 Impact Weapon 6 | . . . . . . . 3 1 . 1 . . . . . . . 1 . . . . . . . . . Slashing Weapon 5 | . . . 1 . . . . . . . . . . . . . . 4 . . . . . . . . . Piercing Weapon 27 | . . . . . . . . . . 2 4 5 2 1 1 3 . 2 . 1 . 2 . 2 1 1 . Special Melee Weapon 1 | . . . . . . . . . . . . . . . . . . 1 . . . . . . . . . Unidentified Prototypes 13 | . . . 1 . . . 1 . . . . 1 . . 1 . . . 2 1 1 5 . . . . . Corrupted Parts 4 | . . . . . . . . . . . . 1 . . . . . . 1 . . 1 . . . . 1 System Corruption 14 | . . . . . . . . . . . . 1 . . . . . . 7 . . 5 . . . . 1 Parts Lost 77 | . . . 2 1 . 4 4 1 . 3 3 1 . 2 1 1 . 9 . . 1 4 1 3 3 . 33 Power 9 | . . . . . . . 1 . . . 2 . . 1 . . . 2 . . . 1 . . . . 2 Propulsion 20 | . . . 1 . . . 1 1 . 1 . . . . . 1 . 5 . . . 2 . . . . 8 Utility 31 | . . . . 1 . 2 . . . 2 1 . . 1 . . . 2 . . 1 . 1 2 1 . 17 Weapon 17 | . . . 1 . . 2 2 . . . . 1 . . 1 . . . . . . 1 . 1 2 . 6 Highest Loss Streak 11 | . . . 2 1 . 2 1 1 . 1 1 1 . 1 1 1 . 4 . . 1 2 1 2 1 . 11 To Critical Strikes 1 | . . . . . . . . . . . . . . . . . . . . . . . . . . . 1 Average Slot Usage (%) 84 | . 98 100 98 99 100 94 96 92 81 79 85 86 92 91 92 92 93 82 73 71 78 76 69 75 76 84 67 Engine 7 | . 1 8 10 11 11 11 8 9 9 8 2 15 15 7 8 . . 12 7 6 6 9 5 5 4 . . Core 1 | . 12 5 . . . . . . . . 11 . . . . . . . . . . . . . . . . Reactor 3 | . . . . . . . . . . . . . . 6 3 12 13 . 5 6 6 2 5 5 5 10 9 Treads 12 | . 20 14 11 11 11 11 18 15 9 10 8 7 7 7 13 12 13 19 13 13 13 13 11 11 10 10 7 Wheel 6 | . 7 14 11 11 11 11 8 9 9 9 7 9 15 15 13 13 13 1 . . . . . . . . . Device 7 | . 12 5 12 6 . 5 17 11 9 8 4 4 2 7 3 2 2 5 6 5 6 6 10 9 10 14 12 Storage 7 | . 14 14 11 11 11 11 9 9 9 9 7 7 7 7 6 6 6 6 6 6 6 6 5 5 5 5 5 Processor 6 | . . . 8 11 11 5 8 9 9 9 7 7 7 7 6 6 6 6 6 6 6 6 5 5 5 5 5 Hackware 9 | . . . . . . . . 8 9 9 12 9 14 8 15 21 24 9 6 4 5 7 5 11 20 21 12 Protection 5 | . . 8 11 15 22 16 7 2 . . 4 6 4 5 5 2 . 4 6 6 11 6 5 5 5 5 3 Energy Cannon 5 | . . . . . . . 10 12 9 8 7 6 7 8 7 . 1 6 1 4 10 6 5 4 5 4 4 Ballistic Gun 3 | . 25 28 21 22 22 21 5 . . . . . . . . . . . . 1 . . 5 1 . . . Special Weapon 2 | . . . . . . . . . . . 2 3 6 5 4 3 3 . . . . 2 . 3 3 4 3 Piercing Weapon 1 | . . . . . . . . . . 4 3 3 . . . 3 . . . 5 1 2 . . . . 1 Naked Turns . | . . . . . . . . . . . . . . . . . . . . . . . . . . . . Heaviest Build 240 | 12 92 94 97 97 97 99 106 166 166 166 184 193 196 186 185 194 187 203 205 205 205 203 198 200 234 235 240 Greatest Support 160 | 40 40 16 16 16 16 16 16 40 12 70 28 28 24 24 24 24 24 135 160 160 160 160 160 160 160 150 150 Greatest Overweight (x) 68 | . 5 5 9 6 6 6 8 13 13 13 14 16 8 7 7 8 7 14 1 68 1 1 1 1 1 1 58 Average Overweight (x) 5 | . 2 5 8 5 6 6 6 10 13 12 6 6 7 7 7 7 7 2 1 9 1 1 1 1 1 1 1 Largest Inventory Capacity 30 | 8 25 25 25 25 25 25 25 30 30 30 30 30 30 30 30 30 30 30 30 30 30 30 30 30 30 30 30 Average Capacity 28 | 8 18 25 25 25 25 25 25 27 30 30 30 30 30 30 30 30 30 30 30 30 30 30 30 30 30 30 30 Most Carried 30 | 6 18 22 25 25 25 25 25 30 30 30 30 30 30 30 30 30 30 30 30 30 30 30 30 30 30 30 29 Average Carried 27 | 4 12 20 23 25 25 23 24 26 30 29 29 29 30 29 29 29 29 27 29 29 29 29 29 28 29 29 25 Final Capacity 30 | 8 25 25 25 25 25 25 25 30 30 30 30 30 30 30 30 30 30 30 30 30 30 30 30 30 30 30 30 Final Carried 30 | 4 18 22 25 25 25 23 25 30 30 30 30 30 30 29 30 30 29 28 30 29 30 30 30 30 30 29 15 Class Distribution -------------------- 62% | Botlord-Mutant 13% | Mutant 10% | Hauler-Mutant 8% | Bothacker-Mutant 3% | Scavenger-Mutant Dominant Class ---------------- Mutant | -10/Materials Mutant | -10/Mines Mutant | -9/Materials Mutant | -9/Mines Mutant | -9/Exiles Mutant | -8/Mines Scavenger-Mutant | -8/Materials Hauler-Mutant | -8/Garrison Hauler-Mutant | -8/Materials Hauler-Mutant | -8/Garrison Bothacker-Mutant | -7/Factory Bothacker-Mutant | -7/Garrison Botlord-Mutant | -7/Factory Botlord-Mutant | -7/Garrison Botlord-Mutant | -6/Factory Botlord-Mutant | -6/Garrison Botlord-Mutant | -6/Factory Botlord-Mutant | -6/Extension Botlord-Mutant | -6/Cetus Botlord-Mutant | -6/Archives Botlord-Mutant | -6/Hub_04(d) Botlord-Mutant | -6/Garrison Botlord-Mutant | -5/Factory Botlord-Mutant | -5/Garrison Botlord-Mutant | -4/Factory Botlord-Mutant | -4/Waste Botlord-Mutant | -4/Factory Resources | -11 -10 -10 -9 -9 -9 -8 -8 -8 -8 -8 -7 -7 -7 -7 -6 -6 -6 -6 -6 -6 -6 -6 -5 -5 -4 -4 -4 ----------- Run | Jun Mat Min Mat Min Exi Min Mat Gar Mat Gar Fac Gar Fac Gar Fac Gar Fac Ext Cet Arc Hub Gar Fac Gar Fac Was Fac Matter Collected 9420 | 200 282 286 902 174 99 212 555 210 . 588 611 490 77 362 211 420 108 897 149 285 99 641 . 345 496 171 550 Remotely . | . . . . . . . . . . . . . . . . . . . . . . . . . . . . Salvage Created 18707 | . 442 375 1242 142 . 503 900 313 . 1019 1609 1620 85 589 422 571 234 1562 . 344 212 872 . 1479 1708 117 2347 Parts 842 | . 28 24 69 5 . 26 59 27 . 22 65 45 1 27 25 35 7 69 . 20 12 44 . 36 76 9 111 Haulers Intercepted 10 | . 2 . 2 . . . 3 . . . 1 . . . . . . . . . . . . . . . 2 Recyclers Shooed 15 | . . . 6 1 . 1 2 . . . 1 . . . 1 . . . . . . . . . 1 . 2 Parts Field Recycled . | . . . . . . . . . . . . . . . . . . . . . . . . . . . . Retrieved Matter . | . . . . . . . . . . . . . . . . . . . . . . . . . . . . Parts Self-Destructed . | . . . . . . . . . . . . . . . . . . . . . . . . . . . . Prevented . | . . . . . . . . . . . . . . . . . . . . . . . . . . . . Kills | -11 -10 -10 -9 -9 -9 -8 -8 -8 -8 -8 -7 -7 -7 -7 -6 -6 -6 -6 -6 -6 -6 -6 -5 -5 -4 -4 -4 ------- Run | Jun Mat Min Mat Min Exi Min Mat Gar Mat Gar Fac Gar Fac Gar Fac Gar Fac Ext Cet Arc Hub Gar Fac Gar Fac Was Fac Combat Hostiles Destroyed 305 | . 9 9 23 3 . 16 15 13 . 22 26 16 1 16 9 9 4 26 . 1 4 10 . 19 23 . 31 Melee 16 | . . . . . . . . . . 2 . 1 . . 1 1 . 3 . . . 6 . 1 1 . . Guns 55 | . 4 6 14 2 . 9 3 . . 2 . . . . . 8 3 2 . 1 . 1 . . . . . Cannons 113 | . . . . . . . 2 4 . 7 14 5 1 7 6 . 1 14 . . 3 3 . 11 17 . 18 AOE 84 | . 5 3 9 1 . 7 10 8 . 7 6 8 . 7 1 . . 5 . . 1 . . . 1 . 5 Classes Destroyed 24 | . 5 2 3 1 . . 2 . . 2 1 1 . . . 3 . . . . . 1 . 1 2 . . Worker 18 | . 1 1 2 . . 1 . . . . 3 . . . 1 . . . . . . . . . . . 9 Builder 17 | . . . . . . . 2 . . . 1 . . . . . . 5 . . . . . . . . 9 Tunneler 4 | . . 2 . 1 . . 1 . . . . . . . . . . . . . . . . . . . . Hauler 10 | . 2 . 2 . . . 3 . . . 1 . . . . . . . . . . . . . . . 2 Recycler 12 | . 1 . 4 . . 2 1 . . . . . . . . . . . . . . . . . 2 . 2 Carrier 1 | . . . . . . . . . . . . 1 . . . . . . . . . . . . . . . Mechanic 1 | . . . . . . . . . . . 1 . . . . . . . . . . . . . . . . Operator 12 | . . . 1 . . . 1 . . . . . . . . . . 1 . 8 . . . . . . 1 Watcher 8 | . . . 3 . . . 1 . . . 2 . . . . . . . . . . . . . 1 . 1 Swarmer 55 | . 3 3 3 . . 10 . 6 . 4 4 4 . 6 1 1 . 3 . . . . . . 1 . 6 Saboteur 2 | . . . . . . . . . . 2 . . . . . . . . . . . . . . . . . Grunt 120 | . 6 4 16 2 . 5 9 2 . 13 9 12 2 3 3 1 2 9 . . 2 . . 13 2 . 5 Brawler 9 | . . . 1 . . 1 1 1 . . 2 . . . . . . . . . 1 . . 1 . . 1 Duelist 5 | . . . . 1 . . . . . . 3 . . . 1 . . . . . . . . . . . . Protector 2 | . . . . . . . . . . . . . . . . 1 . . . . . . . . 1 . . Sentry 50 | . . 2 4 . . . 3 . . 1 6 1 . 2 1 2 1 12 . 1 . 6 . . 5 . 3 Demolisher 1 | . . . . . . . . . . . . . . . . 1 . . . . . . . . . . . Specialist 2 | . . . . . . . . . . . . . . . . . . . . . . . . 2 . . . Hunter 18 | . . . . . . . 2 4 . 1 . . . . . 1 . . . . . . . 2 . . 8 Programmer 35 | . . . . . . . . . . 1 3 . . 4 3 3 1 . . . 1 1 . . 11 . 7 Heavy 1 | . . . . . . . . . . . . . . . . . . . . . . . . . 1 . . Behemoth 5 | . . . . . . . . . . . . . . . . 1 . . . . . 2 . 1 . . 1 Striker 1 | . . . . . . . . . . . . . . . . . . . . . . 1 . . . . . Assembled 2 | . . . . . . . . . . . . . . . . . . . . . . . . . 2 . . Savage 2 | . . . . . . . . . . . . . . . . . . 2 . . . . . . . . . Butcher 1 | . . . . . . . . . . . . . . 1 . . . . . . . . . . . . . Martyr 2 | . . . . . . . . . . . . . . . . . . . . . . . . . . 2 . Best Kill Streak 16 | . 6 3 8 4 . 9 10 4 . 8 6 4 1 3 2 1 2 4 . 2 3 1 . 8 4 . 16 Combat Bots Only 8 | . 5 3 6 3 . 4 8 4 . 8 5 4 1 3 2 1 2 3 . 1 3 1 . 8 4 . 6 Max Kills in Single Turn 8 | . 4 3 3 2 . 3 4 2 . 3 3 3 1 2 1 1 1 3 . 1 1 1 . 1 1 1 8 Gunslinging 1 | . . . . . . 1 . . . . . . . . . . . . . . . . . . . . . Exploded 4 | . 3 3 2 1 . 3 4 2 . 3 2 3 . 2 1 . . 3 . . 1 . . . 1 . 2 Melee 1 | . . . . . . . . . . 1 . 1 . . 1 1 . 1 . . . 1 . 1 1 . . Uniques/NPCs Destroyed . | . . . . . . . . . . . . . . . . . . . . . . . . . . . . Combat | -11 -10 -10 -9 -9 -9 -8 -8 -8 -8 -8 -7 -7 -7 -7 -6 -6 -6 -6 -6 -6 -6 -6 -5 -5 -4 -4 -4 -------- Run | Jun Mat Min Mat Min Exi Min Mat Gar Mat Gar Fac Gar Fac Gar Fac Gar Fac Ext Cet Arc Hub Gar Fac Gar Fac Was Fac Damage Taken 24704 | . 248 357 584 162 . 385 611 296 . 1005 1256 440 43 558 585 906 263 1791 119 . 1102 2768 327 1398 2378 . 7122 Core 2756 | . 45 80 79 35 . 104 51 29 . 158 115 13 . 98 6 101 30 204 . . 57 371 . 19 352 . 809 Absorbed by Shields 1518 | . . . . . . . 47 83 . 8 . 2 . . . . . 362 14 . . . . . 154 . 848 Reduced by Siege Mode 1182 | . . . . . . . . . . 8 . . . . . . . 7 . . 14 168 . 81 113 . 791 Redirected to Shielding 102 | . . . . . . 22 4 . . . . . . . . . . . . . 76 . . . . . . Ignored by Resistances 15 | . . . . . . . . . . . . 15 . . . . . . . . . . . . . . . Regen/Repaired (Parts) 2173 | . . . . . . . 411 . . . 179 53 . . 138 . . . . . . . . . . 1154 238 Core Remaining (%) 60 | 100 . 50 . . . 45 . . . 56 . . . 67 . . . . . . . 9 . 98 . . . Volleys Fired 1398 | . 22 28 76 15 . 28 39 19 . 53 116 52 6 72 70 54 41 82 2 57 25 93 . 125 137 10 176 Largest 2 | . 2 2 2 2 . 2 2 2 . 2 1 1 1 1 1 2 2 2 2 2 2 2 . 2 2 1 2 Hottest 300 | . 60 46 46 46 . 46 143 143 . 103 81 81 81 81 90 184 184 184 300 160 175 175 . 128 226 113 226 Shots Fired 1728 | . 40 55 144 29 . 52 66 27 . 59 117 55 6 71 70 62 44 123 5 68 36 116 . 140 147 10 186 Gun 543 | . 36 54 137 28 . 48 37 . . 6 . . . . . 34 20 30 5 68 . 25 . 15 . . . Cannon 914 | . . . . . . . 18 20 . 45 87 41 4 56 52 8 6 69 . . 36 69 . 107 132 5 159 Launcher 82 | . 4 1 7 1 . 4 11 7 . 8 5 8 . 5 . . . 6 . . . . . . . . 15 Special 189 | . . . . . . . . . . . 25 6 2 10 18 20 18 18 . . . 22 . 18 15 5 12 Kinetic 422 | . 30 54 137 28 . 48 37 . . 6 . . . . . . . . . 42 . 25 . 15 . . . Thermal 709 | . 6 . . . . . 18 16 . 10 12 . 1 19 50 42 26 99 2 26 36 69 . 62 107 5 103 Explosive 82 | . 4 1 7 1 . 4 11 7 . 8 5 8 . 5 . . . 6 . . . . . . . . 15 Electromagnetic 326 | . . . . . . . . 4 . 35 75 41 3 37 2 . . . 3 . . . . 45 25 . 56 Robot Hit Streak 24 | . 8 15 17 8 . 18 16 4 . 17 14 15 2 10 14 11 12 20 . 10 10 16 . 24 23 11 23 Robot Miss Streak 5 | . 3 2 5 2 . 2 2 1 . 2 4 1 3 3 3 3 3 2 3 2 1 2 . 2 3 . 4 Penetration Max 1 | . . . . . . . . . . . . . . . . . . . . 1 . . . . . . . Secondary Targets 4 | . . 1 . 1 . 2 . . . . . . . . . . . . . . . . . . . . . Max Gunslinging Chain 1 | . . 1 . 1 . 1 . . . . . . . . . . . . . . . . . . . . . Capacitor 189 | . . . . . . . . . . . . . . . . . . . . . . 4 . 89 87 . 9 Shots Hit Robots 1288 | . 24 44 85 20 . 40 47 14 . 53 87 59 2 37 45 55 29 122 . 52 19 102 . 110 102 13 127 Core Hits 582 | . 19 16 53 8 . 27 40 15 . 30 44 38 2 18 13 16 6 48 . 24 8 28 . 29 31 2 67 Critical Kills 8 | . . . 1 . . . . 1 . . . . . 1 . . . 2 . 1 . . . . . . 2 Critical Parts Destroyed 3 | . . . . . . . 1 . . 1 . . . . . . . . . . . . . 1 . . . Critical Strikes 33 | . . . 1 . . . 1 1 . 2 1 8 . 2 . 3 . 3 . 1 . 3 . 2 1 1 3 Meltdown 6 | . . . . . . . . 1 . . . . . 1 . . . 2 . . . . . . . . 2 Destroy 4 | . . . 1 . . . 1 . . . . . . . . . . . . 1 . . . 1 . . . Corrupt 4 | . . . . . . . . . . 1 1 . . 1 . . . . . . . . . . . . 1 Smash 1 | . . . . . . . . . . 1 . . . . . . . . . . . . . . . . . Sever 1 | . . . . . . . . . . . . . . . . . . 1 . . . . . . . . . Impale 17 | . . . . . . . . . . . . 8 . . . 3 . . . . . 3 . 1 1 1 . Melee Attacks 246 | . . . 1 . . . 13 10 . 14 17 70 2 3 1 23 . 35 . . . 40 . 7 7 3 . Impact 35 | . . . . . . . 13 10 . 4 . . . . . . . 8 . . . . . . . . . Slashing 7 | . . . 1 . . . . . . . . . . . . . . 6 . . . . . . . . . Piercing 187 | . . . . . . . . . . 10 17 70 2 3 1 23 . 4 . . . 40 . 7 7 3 . Sneak Attacks 79 | . . . . . . . 1 . . . . . . . 1 15 . 27 . . . 23 . 2 7 3 . Combat Hostiles 37 | . . . . . . . . . . . . . . . 1 1 . 3 . . . 23 . 2 7 . . Follow-up Attacks . | . . . . . . . . . . . . . . . . . . . . . . . . . . . . Damage Inflicted 47964 | . 693 802 2082 392 . 1114 1790 881 . 3143 3088 3351 74 1510 1056 1772 529 3831 18 1437 707 4150 . 3549 4071 421 7503 Guns 7737 | . 331 655 1363 326 . 637 388 . . 68 . . . . . 624 497 632 18 1437 . 437 . 324 . . . Cannons 21828 | . . . . . . . 277 321 . 1086 2222 793 74 910 986 127 32 1864 . . 639 1554 . 2660 3387 201 4695 Explosions 10514 | . 362 147 719 66 . 477 991 560 . 1347 866 721 . 600 . . . 644 . . 68 . . . 138 . 2808 Melee 7876 | . . . . . . . 134 . . 642 . 1837 . . 70 1021 . 691 . . . 2150 . 565 546 220 . Ramming 9 | . . . . . . . . . . . . . . . . . . . . . . 9 . . . . . Kinetic 5272 | . 295 655 1363 326 . 637 388 . . 68 . . . . . . . . . 779 . 437 . 324 . . . Thermal 17146 | . 36 . . . . . 277 214 . 478 400 31 . 405 950 751 529 2496 . 658 707 1554 . 1538 2884 201 3037 Explosive 9859 | . 362 147 719 66 . 477 991 560 . 1087 767 690 . 541 . . . 644 . . . . . . . . 2808 Electromagnetic 7802 | . . . . . . . . 107 . 868 1921 793 74 564 36 . . . 18 . . . . 1122 641 . 1658 Impact 368 | . . . . . . . 134 . . 129 . . . . . . . 105 . . . . . . . . . Slashing 356 | . . . . . . . . . . . . . . . . . . 356 . . . . . . . . . Piercing 7152 | . . . . . . . . . . 513 . 1837 . . 70 1021 . 230 . . . 2150 . 565 546 220 . Highest Corruption 22 | . . . . . . 4 . . . 2 3 4 4 4 . 1 5 6 13 13 2 6 . . 3 3 22 Average Corruption 4 | . . . . . . 4 . . . 1 1 3 4 2 . 1 3 5 12 10 2 3 . . 2 2 13 Corruption Purged 22 | . . . . . . . . . . . . . . 4 . . . . . 13 . 2 . . . 3 . Corruption Blocked . | . . . . . . . . . . . . . . . . . . . . . . . . . . . . Effects 338 | . . . . . . 1 . . . 18 16 37 7 18 . 8 11 92 15 14 5 8 . . 36 7 45 Message Errors 78 | . . . . . . . . . . 3 3 9 2 3 . 2 4 24 3 2 1 1 . . 7 3 11 Matter Fused 90 | . . . . . . . . . . 3 6 7 2 5 . 2 1 25 4 2 3 1 . . 13 3 13 Heat Flow Errors 47 | . . . . . . . . . . 2 1 5 1 3 . 1 2 12 3 6 . 2 . . 6 . 3 Energy Discharges 32 | . . . . . . 1 . . . 4 1 3 . 2 . 1 2 8 . 1 . 1 . . 2 1 5 Parts Rejected 1 | . . . . . . . . . . . . . . . . . . 1 . . . . . . . . . Parts Fused 4 | . . . . . . . . . . . . 1 . . . . . . . . . . . . . . 3 Data Loss (minor) 43 | . . . . . . . . . . 6 2 8 2 4 . 1 . 6 3 1 . 2 . . 3 . 5 Data Loss (major) 14 | . . . . . . . . . . . 2 . . . . 1 1 7 . . . 1 . . 1 . 1 Misfires 16 | . . . . . . . . . . . 1 3 . . . . 1 3 2 . 1 . . . 4 . 1 Alerts 6 | . . . . . . . . . . . . 1 . . . . . 5 . . . . . . . . . Weapon Failures 7 | . . . . . . . . . . . . . . 1 . . . 1 . 2 . . . . . . 3 Overload Shots 1 | . . . . . . . . . . . . . . . . . . . 1 . . . . . . . . Overflow Damage 1768 | . . 10 . 1 . 34 6 42 . 251 34 151 . 31 52 80 . 95 . . . 164 . 36 425 . 356 Projectiles 680 | . . . . . . . 6 . . 82 23 5 . 5 52 . . . . . . . . 36 224 . 247 Explosions 403 | . . 10 . 1 . 34 . 42 . 106 11 6 . 26 . . . . . . . . . . 58 . 109 Melee 685 | . . . . . . . . . . 63 . 140 . . . 80 . 95 . . . 164 . . 143 . . Knockbacks 1 | . . . . . . . . . . . . . . . . . . 1 . . . . . . . . . Impact 1 | . . . . . . . . . . . . . . . . . . 1 . . . . . . . . . Kinetic . | . . . . . . . . . . . . . . . . . . . . . . . . . . . . Secondary . | . . . . . . . . . . . . . . . . . . . . . . . . . . . . Self-Inflicted Damage 586 | . 41 13 16 . . . 49 29 . 41 . 97 . . . . . 45 . . 27 . . . 173 . 55 Shots 17 | . 2 1 1 . . . 3 1 . 1 . 3 . . . . . 1 . . 1 . . . 2 . 1 Rammed 1 | . . . . . . . . . . . . . . . . . . . . . . 1 . . . . . Targets Rammed 1 | . . . . . . . . . . . . . . . . . . . . . . 1 . . . . . Kicked . | . . . . . . . . . . . . . . . . . . . . . . . . . . . . Crushed . | . . . . . . . . . . . . . . . . . . . . . . . . . . . . Highest Temperature 536 | . 83 88 25 28 . 64 24 64 . 296 536 210 274 200 306 288 304 289 239 503 249 516 . 240 401 94 451 Average Temperature 88 | . 39 45 9 10 . 27 8 20 . 67 76 74 99 77 88 90 113 84 99 126 74 104 . 97 107 48 120 Received Heat Transfer 6108 | . 129 180 222 48 . 198 288 41 . 411 408 225 9 87 90 45 90 553 9 . 279 1153 48 351 153 . 1091 Effects 20 | . . . . . . . . . . . 3 . . . . 1 . . . 4 . 6 . 1 1 . 4 Shutdowns 4 | . . . . . . . . . . . 1 . . . . . . . . 1 . 1 . . . . 1 Energy Bleed 2 | . . . . . . . . . . . 1 . . . . 1 . . . . . . . . . . . Interference 7 | . . . . . . . . . . . . . . . . . . . . 3 . 3 . 1 . . . Matter Decay 1 | . . . . . . . . . . . 1 . . . . . . . . . . . . . . . . Short Circuit 3 | . . . . . . . . . . . . . . . . . . . . . . . . . 1 . 2 Damage (minor) 2 | . . . . . . . . . . . . . . . . . . . . . . 1 . . . . 1 Damage (core) 1 | . . . . . . . . . . . . . . . . . . . . . . 1 . . . . . Siege Activations 16 | . . . . . . . . . . 1 . . . . . . . 2 . . 1 2 . 4 4 . 2 Total Turns 437 | . . . . . . . . . . 10 . . . . . . . 33 . . 9 63 . 114 97 . 111 Longest Duration 72 | . . . . . . . . . . 10 . . . . . . . 18 . . 9 37 . 51 46 . 72 Robots Corrupted 31 | . . . . . . . . . . 3 6 3 . 1 . . . . . . . . . 7 4 . 7 Combat Hostiles 30 | . . . . . . . . . . 3 6 2 . 1 . . . . . . . . . 7 4 . 7 Parts Fried 65 | . . . . . . . . 1 . 9 13 3 . 4 . . . . . 1 . . . 9 9 . 16 Impact Corruptions 7 | . . . . . . . . . . 3 . . . . . . . 4 . . . . . . . . . Robots Melted 7 | . . . . . . . . 1 . . . . . 1 1 . . 2 . . . . . . . . 2 Combat Hostiles 6 | . . . . . . . . 1 . . . . . 1 1 . . 2 . . . . . . . . 1 Parts Melted 62 | . . . . . . . . 3 . . 1 2 . 5 5 3 1 17 . . . . . 2 12 . 11 Heat Transferred 16409 | . 75 . . . . . 444 370 . 546 507 50 . 600 1375 835 679 3231 . 888 372 615 . 666 2381 185 2590 Parts Sabotaged 6 | . . . . . . . . . . 6 . . . . . . . . . . . . . . . . . Parts Stolen . | . . . . . . . . . . . . . . . . . . . . . . . . . . . . Parts Stripped . | . . . . . . . . . . . . . . . . . . . . . . . . . . . . Power Chain Reactions 7 | . . . . . . . . . . 3 1 1 . 1 . . . . . . 1 . . . . . . Missiles Intercepted . | . . . . . . . . . . . . . . . . . . . . . . . . . . . . Alert | -11 -10 -10 -9 -9 -9 -8 -8 -8 -8 -8 -7 -7 -7 -7 -6 -6 -6 -6 -6 -6 -6 -6 -5 -5 -4 -4 -4 ------- Run | Jun Mat Min Mat Min Exi Min Mat Gar Mat Gar Fac Gar Fac Gar Fac Gar Fac Ext Cet Arc Hub Gar Fac Gar Fac Was Fac Peak Influence 1583 | . 210 178 621 241 . 385 612 848 413 1296 680 1583 1080 1409 838 553 334 514 760 516 566 1454 776 1154 704 190 359 Initial 830 | . . 78 22 241 . . 150 263 413 287 680 416 830 613 739 156 289 34 276 224 . 340 763 543 605 128 . Average 458 | . 119 89 325 163 . 205 427 587 413 810 376 873 928 1030 461 376 151 141 465 221 341 1065 762 840 264 93 175 Maximum Alert Level 4 | . 1 . 2 1 . 1 2 3 2 4 2 4 3 4 3 2 1 2 3 2 2 4 3 4 3 . 1 Low Security (%) 29 | 100 92 100 38 52 . 54 4 . . . 15 . . . 6 9 76 59 . 56 25 . . . 46 100 58 Level 1 23 | . 7 . 11 47 . 45 30 9 . 13 35 . . . 48 42 23 39 59 31 27 8 . . 38 . 41 Level 2 25 | . . . 49 . . . 65 64 100 28 48 46 . 18 22 47 . . 18 11 47 11 . 36 13 . . Level 3 11 | . . . . . . . . 26 . 37 . 24 100 37 22 . . . 22 . . 12 100 38 1 . . Level 4 9 | . . . . . . . . . . 20 . 29 . 43 . . . . . . . 67 . 25 . . . Level 5 . | . . . . . . . . . . . . . . . . . . . . . . . . . . . . High Security . | . . . . . . . . . . . . . . . . . . . . . . . . . . . . Max Security . | . . . . . . . . . . . . . . . . . . . . . . . . . . . . Squads Dispatched 46 | . 2 . 3 . . . 2 . 1 . 7 . 1 . 3 . 1 4 . . 4 . 1 . 8 . 9 Investigation 8 | . 2 . 1 . . . . . 1 . 1 . . . 1 . . 1 . . . . 1 . . . . Extermination 13 | . . . . . . . . . . . 2 . 1 . 1 . 1 . . . 1 . . . 4 . 3 Reinforcement 17 | . . . 2 . . . 2 . . . 1 . . . . . . 3 . . 3 . . . 3 . 3 Assault 5 | . . . . . . . . . . . 3 . . . 1 . . . . . . . . . 1 . . Garrison 3 | . . . . . . . . . . . . . . . . . . . . . . . . . . . 3 Intercept . | . . . . . . . . . . . . . . . . . . . . . . . . . . . . Searches Triggered . | . . . . . . . . . . . . . . . . . . . . . . . . . . . . Construction Impeded 2 | . . . . . . . . . . . 1 . . . . . . . . . . . . . . . 1 Haulers Reinforced . | . . . . . . . . . . . . . . . . . . . . . . . . . . . . Active Scanning Responses . | . . . . . . . . . . . . . . . . . . . . . . . . . . . . Cargo Convoy Interrupts 1 | . . . . . . . . . . . . . . . . . . . . . . . . . 1 . . Alert ID Control Effect 14 | . . . . . . . . . . . . 1 1 1 2 3 1 1 . . . 3 . 1 . . . Stealth | -11 -10 -10 -9 -9 -9 -8 -8 -8 -8 -8 -7 -7 -7 -7 -6 -6 -6 -6 -6 -6 -6 -6 -5 -5 -4 -4 -4 --------- Run | Jun Mat Min Mat Min Exi Min Mat Gar Mat Gar Fac Gar Fac Gar Fac Gar Fac Ext Cet Arc Hub Gar Fac Gar Fac Was Fac Distress Signals 16 | . 1 1 1 . . . 2 . . . 2 . . . . . . 1 2 . 2 . . . 3 . 1 Communications Jammed 2 | . . . . . . . . . . . . . . . . . . 1 . . . . . . . . 1 Distress Signals 2 | . . . . . . . . . . . . . . . . . . 1 . . . . . . . . 1 Times Spotted 573 | . 16 11 38 3 . 15 27 15 . 25 55 18 9 20 25 22 9 50 13 26 17 32 1 28 42 6 50 Peak Tracking Total 10 | . 6 3 7 3 . 3 8 5 . 8 7 4 5 3 6 10 2 4 5 1 5 7 1 4 7 2 7 Tactical Retreats 20 | . . . . . . . . . . 1 2 2 . 1 . 1 . . . . . 1 . 6 5 . 1 Traps | -11 -10 -10 -9 -9 -9 -8 -8 -8 -8 -8 -7 -7 -7 -7 -6 -6 -6 -6 -6 -6 -6 -6 -5 -5 -4 -4 -4 ------- Run | Jun Mat Min Mat Min Exi Min Mat Gar Mat Gar Fac Gar Fac Gar Fac Gar Fac Ext Cet Arc Hub Gar Fac Gar Fac Was Fac Traps Triggered 53 | . . . . . . . . 3 . 9 . 11 . 5 . 2 2 5 . . . 8 . 6 1 . 1 Indirectly . | . . . . . . . . . . . . . . . . . . . . . . . . . . . . Trap Hack Attempts . | . . . . . . . . . . . . . . . . . . . . . . . . . . . . Triggered . | . . . . . . . . . . . . . . . . . . . . . . . . . . . . Disarmed 6 | . . . . . . . 6 . . . . . . . . . . . . . . . . . . . . Reprogrammed . | . . . . . . . . . . . . . . . . . . . . . . . . . . . . Reused . | . . . . . . . . . . . . . . . . . . . . . . . . . . . . Traps Extracted . | . . . . . . . . . . . . . . . . . . . . . . . . . . . . Installed . | . . . . . . . . . . . . . . . . . . . . . . . . . . . . Triggered 3 | . . . . . . . . . . . . . . . . . . . . . . . . . 3 . . Machines | -11 -10 -10 -9 -9 -9 -8 -8 -8 -8 -8 -7 -7 -7 -7 -6 -6 -6 -6 -6 -6 -6 -6 -5 -5 -4 -4 -4 ---------- Run | Jun Mat Min Mat Min Exi Min Mat Gar Mat Gar Fac Gar Fac Gar Fac Gar Fac Ext Cet Arc Hub Gar Fac Gar Fac Was Fac Machines Disabled 72 | . . 1 . . . . 1 2 . 8 5 9 2 5 . 3 . 2 4 5 2 5 . 4 6 . 8 Max in Single Turn 4 | . . 1 . . . . 1 1 . 2 4 1 . 1 . 1 . 1 1 1 1 1 . 1 4 . 1 Garrison Access 2 | . . . . . . . . . . . 1 . . . 1 . . . . . . . . . . . . Garrison Relay 20 | . . . . . . . . 2 . 3 . 4 . 3 . 2 . . . . . 3 . 3 . . . Machines Repaired . | . . . . . . . . . . . . . . . . . . . . . . . . . . . . Machines Sabotaged . | . . . . . . . . . . . . . . . . . . . . . . . . . . . . Overloaded Fab Kills . | . . . . . . . . . . . . . . . . . . . . . . . . . . . . Hacking | -11 -10 -10 -9 -9 -9 -8 -8 -8 -8 -8 -7 -7 -7 -7 -6 -6 -6 -6 -6 -6 -6 -6 -5 -5 -4 -4 -4 --------- Run | Jun Mat Min Mat Min Exi Min Mat Gar Mat Gar Fac Gar Fac Gar Fac Gar Fac Ext Cet Arc Hub Gar Fac Gar Fac Was Fac Machines Accessed 91 | . 6 . 9 1 1 . 4 4 1 1 13 3 4 2 8 2 3 8 1 . 6 2 1 1 9 . 1 Terminals 64 | . 4 . 8 1 . . 1 4 . 1 8 3 2 2 5 2 1 8 1 . 5 2 . 1 5 . . Fabricators 7 | . . . . . . . . . . . 1 . . . 1 . 2 . . . . . . . 3 . . Repair Stations 3 | . . . . . . . 1 . . . . . 1 . . . . . . . . . . . 1 . . Recycling Units 7 | . 2 . 1 . . . 1 . . . 2 . . . . . . . . . . . . . . . 1 Scanalyzers . | . . . . . . . . . . . . . . . . . . . . . . . . . . . . Garrison Access 9 | . . . . . . . 1 . 1 . 2 . 1 . 2 . . . . . 1 . 1 . . . . Total Hacks 223 | . 20 . 28 2 1 . 15 12 3 2 33 5 7 3 19 4 7 17 1 . 14 3 5 3 17 . 2 Successful 104 | . 10 . 9 1 1 . 11 7 3 . 17 2 5 2 6 2 3 7 . . 7 3 3 1 4 . . Failed 119 | . 10 . 19 1 . . 4 5 . 2 16 3 2 1 13 2 4 10 1 . 7 . 2 2 13 . 2 Catastrophic 24 | . 2 . 3 . . . . . . . 3 1 1 . 4 1 1 3 1 . 1 . . . 3 . . Database Lockouts . | . . . . . . . . . . . . . . . . . . . . . . . . . . . . Manual 68 | . 15 . 5 2 . . 1 6 1 . 11 1 2 . 3 2 1 4 1 . 3 1 3 . 6 . . Terminals 164 | . 17 . 26 2 . . 2 12 . 2 23 5 4 3 15 4 2 17 1 . 13 3 . 3 10 . . Fabricators 13 | . . . . . . . . . . . 2 . . . 1 . 5 . . . . . . . 5 . . Repair Stations 13 | . . . . . . . 10 . . . . . 1 . . . . . . . . . . . 2 . . Recycling Units 15 | . 3 . 2 . . . 2 . . . 6 . . . . . . . . . . . . . . . 2 Scanalyzers . | . . . . . . . . . . . . . . . . . . . . . . . . . . . . Garrison Access 17 | . . . . . . . 1 . 3 . 2 . 2 . 3 . . . . . 1 . 5 . . . . Terminal Hacks 55 | . 7 . 8 1 1 . 1 4 . . 7 2 1 2 3 2 . 5 . . 6 2 . 1 2 . . Record 1 | . . . . . 1 . . . . . . . . . . . . . . . . . . . . . . Part Schematic 2 | . 1 . . . . . . . . . 1 . . . . . . . . . . . . . . . . Robot Analysis 4 | . 3 . 1 . . . . . . . . . . . . . . . . . . . . . . . . Prototype ID Bank 6 | . 1 . 3 1 . . . . . . 1 . . . . . . . . . . . . . . . . Open Door 5 | . . . . . . . . . . . . . . 1 . . . 4 . . . . . . . . . Level Access Points 1 | . . . . . . . . . . . . . . . . . . . . . 1 . . . . . . Branch Access Points 1 | . . . . . . . . . . . 1 . . . . . . . . . . . . . . . . Emergency Access Points 5 | . . . . . . . . 1 . . . 1 . 1 . 1 . . . . 1 . . . . . . Terminal Index 2 | . 1 . . . . . . . . . . . . . . . . . . . 1 . . . . . . Unreport Threat 7 | . . . . . . . . . . . 3 . . . 2 . . . . . . . . . 2 . . Locate Traps 3 | . 1 . 1 . . . . . . . . . . . . . . . . . 1 . . . . . . Disarm Traps 1 | . . . . . . . 1 . . . . . . . . . . . . . . . . . . . . Dispatch Records 1 | . . . 1 . . . . . . . . . . . . . . . . . . . . . . . . Hauler Manifests 2 | . . . 1 . . . . . . . . . . . 1 . . . . . . . . . . . . Zone Layout 6 | . . . 1 . . . . . . . 1 . 1 . . . . 1 . . 2 . . . . . . Garrison Registry 4 | . . . . . . . . 1 . . . . . . . 1 . . . . . 1 . 1 . . . Patrol Navigation 2 | . . . . . . . . 1 . . . 1 . . . . . . . . . . . . . . . Security Stations 2 | . . . . . . . . 1 . . . . . . . . . . . . . 1 . . . . . Fabricator Hacks 5 | . . . . . . . . . . . 2 . . . . . 2 . . . . . . . 1 . . Network Status 2 | . . . . . . . . . . . . . . . . . 1 . . . . . . . 1 . . Load Schematic 2 | . . . . . . . . . . . 1 . . . . . 1 . . . . . . . . . . Build 1 | . . . . . . . . . . . 1 . . . . . . . . . . . . . . . . Repair Station Hacks 8 | . . . . . . . 8 . . . . . . . . . . . . . . . . . . . . Scan Component 4 | . . . . . . . 4 . . . . . . . . . . . . . . . . . . . . Repair 4 | . . . . . . . 4 . . . . . . . . . . . . . . . . . . . . Recycling Unit Hacks 2 | . . . . . . . 1 . . . 1 . . . . . . . . . . . . . . . . Retrieve Components 2 | . . . . . . . 1 . . . 1 . . . . . . . . . . . . . . . . Scanalyzer . | . . . . . . . . . . . . . . . . . . . . . . . . . . . . Garrison Access Hacks 13 | . . . . . . . 1 . 2 . 2 . 2 . 3 . . . . . 1 . 2 . . . . Unlock Access 7 | . . . . . . . 1 . 1 . 1 . 1 . 1 . . . . . 1 . 1 . . . . Seal Access 2 | . . . . . . . . . . . 1 . . . 1 . . . . . . . . . . . . Coupler Status 4 | . . . . . . . . . 1 . . . 1 . 1 . . . . . . . 1 . . . . Unauthorized Hacks 21 | . 3 . 1 . . . . 3 1 . 5 . 2 . . . 1 2 . . . 1 1 . 1 . . Terminals 9 | . 1 . . . . . . 3 . . 1 . 1 . . . . 2 . . . 1 . . . . . Track 1 | . . . . . . . . 1 . . . . . . . . . . . . . . . . . . . Botnet 6 | . . . . . . . . 2 . . 1 . 1 . . . . 1 . . . 1 . . . . . Operators 2 | . 1 . . . . . . . . . . . . . . . . 1 . . . . . . . . . Fabricators 1 | . . . . . . . . . . . . . . . . . 1 . . . . . . . . . . Haulers 1 | . . . . . . . . . . . . . . . . . 1 . . . . . . . . . . Repair Stations 2 | . . . . . . . . . . . . . 1 . . . . . . . . . . . 1 . . Mechanics 2 | . . . . . . . . . . . . . 1 . . . . . . . . . . . 1 . . Recycling Units 7 | . 2 . 1 . . . . . . . 4 . . . . . . . . . . . . . . . . Reject 2 | . . . . . . . . . . . 2 . . . . . . . . . . . . . . . . Recyclers 1 | . . . . . . . . . . . 1 . . . . . . . . . . . . . . . . Mask 1 | . . . . . . . . . . . 1 . . . . . . . . . . . . . . . . Tunnel 3 | . 2 . 1 . . . . . . . . . . . . . . . . . . . . . . . . Scanalyzers . | . . . . . . . . . . . . . . . . . . . . . . . . . . . . Garrison Access 2 | . . . . . . . . . 1 . . . . . . . . . . . . . 1 . . . . Eject 2 | . . . . . . . . . 1 . . . . . . . . . . . . . 1 . . . . Data Cores Recovered 2 | . . . . . . . . . . . . . 1 . . . . . . . 1 . . . . . . Used . | . . . . . . . . . . . . . . . . . . . . . . . . . . . . Hacking Detections 74 | . 4 . 8 1 . . 2 2 1 1 12 2 4 1 6 1 3 6 1 . 6 1 1 1 9 . 1 Full Trace Events 4 | . 1 . . . . . . . . . 1 . . . 1 . . 1 . . . . . . . . . Feedback Events . | . . . . . . . . . . . . . . . . . . . . . . . . . . . . Feedback Blocked . | . . . . . . . . . . . . . . . . . . . . . . . . . . . . Robot Schematics Acquired . | . . . . . . . . . . . . . . . . . . . . . . . . . . . . Robots Built . | . . . . . . . . . . . . . . . . . . . . . . . . . . . . Authchips . | . . . . . . . . . . . . . . . . . . . . . . . . . . . . Time . | . . . . . . . . . . . . . . . . . . . . . . . . . . . . Total Robot Build Rating . | . . . . . . . . . . . . . . . . . . . . . . . . . . . . Part Schematics Acquired 2 | . 1 . . . . . . . . . 1 . . . . . . . . . . . . . . . . Parts Built 2 | . . . . . . . . . . . 2 . . . . . . . . . . . . . . . . Authchips . | . . . . . . . . . . . . . . . . . . . . . . . . . . . . Time 47 | . . . . . . . . . . . 47 . . . . . . . . . . . . . . . . Total Part Build Rating 10 | . . . . . . . . . . . 10 . . . . . . . . . . . . . . . . Parts Repaired 4 | . . . . . . . 4 . . . . . . . . . . . . . . . . . . . . Time 152 | . . . . . . . 152 . . . . . . . . . . . . . . . . . . . . Parts Recycled . | . . . . . . . . . . . . . . . . . . . . . . . . . . . . Recycled Matter . | . . . . . . . . . . . . . . . . . . . . . . . . . . . . Retrieved Matter . | . . . . . . . . . . . . . . . . . . . . . . . . . . . . Retrieved Components 9 | . . . . . . . 3 . . . 6 . . . . . . . . . . . . . . . . Parts Scanalyzed . | . . . . . . . . . . . . . . . . . . . . . . . . . . . . Part Schematics Acquired . | . . . . . . . . . . . . . . . . . . . . . . . . . . . . Parts Damaged . | . . . . . . . . . . . . . . . . . . . . . . . . . . . . Bothacking | -11 -10 -10 -9 -9 -9 -8 -8 -8 -8 -8 -7 -7 -7 -7 -6 -6 -6 -6 -6 -6 -6 -6 -5 -5 -4 -4 -4 ------------ Run | Jun Mat Min Mat Min Exi Min Mat Gar Mat Gar Fac Gar Fac Gar Fac Gar Fac Ext Cet Arc Hub Gar Fac Gar Fac Was Fac Used RIF Installer 9 | . . . . . . . . 1 . 2 . 1 . 1 . 1 . . . . . 1 . 2 . . . Code Merge 1 | . . . . . . . . . . . . . . . . . . . . . . . . 1 . . . Command Fork 1 | . . . . . . . . . . . . . . . . . . . . . . . . 1 . . . Threat Obfuscator 1 | . . . . . . . . . . . . . . . . . . . . . . 1 . . . . . Signal Jammer 1 | . . . . . . . . . . . . . . . . 1 . . . . . . . . . . . Zone Cloak 1 | . . . . . . . . . . . . . . 1 . . . . . . . . . . . . . Patrol Navigation 1 | . . . . . . . . . . 1 . . . . . . . . . . . . . . . . . Alert ID Control 1 | . . . . . . . . . . . . 1 . . . . . . . . . . . . . . . Autooverride 1 | . . . . . . . . . . 1 . . . . . . . . . . . . . . . . . Robots Hacked 141 | . . . . . . . . . . . 16 9 2 10 14 15 7 15 . . . 13 . 16 10 5 9 Non-combat 15 | . . . . . . . . . . . 1 . . . 4 . 3 3 . . . . . . 3 . 1 Combat 126 | . . . . . . . . . . . 15 9 2 10 10 15 4 12 . . . 13 . 16 7 5 8 Autooverrided 16 | . . . . . . . . . . . 1 3 . 2 2 2 . 2 . . . 1 . 2 . . 1 Robot Hacks Applied 145 | . . . . . . . . . . . 19 6 2 9 16 15 11 13 . . . 13 . 15 12 5 9 find_fabricator 1 | . . . . . . . . . . . . . . . 1 . . . . . . . . . . . . drop_inventory 5 | . . . . . . . . . . . . . . . 1 . 1 3 . . . . . . . . . purge_threat 1 | . . . . . . . . . . . . . . . . . 1 . . . . . . . . . . locate_traps 1 | . . . . . . . . . . . . . . . . . 1 . . . . . . . . . . block_reporting 3 | . . . . . . . . . . . . . . . . . 2 . . . . . . . 1 . . map_route 3 | . . . . . . . . . . . . . . . 1 . . . . . . . . . 2 . . ignore_targets 5 | . . . . . . . . . . . . . . . . . . . . . . . . . . 5 . emergency_deploy 1 | . . . . . . . . . . . 1 . . . . . . . . . . . . . . . . find_garrison 4 | . . . . . . . . . . . 1 . . . . . 1 . . . . . . . 1 . 1 scatter_targeting 1 | . . . . . . . . . . . 1 . . . . . . . . . . . . . . . . mark_system 1 | . . . . . . . . . . . . . . . . . . 1 . . . . . . . . . disrupt_area 1 | . . . . . . . . . . . . . . . . . . . . . . 1 . . . . . spike_heat 9 | . . . . . . . . . . . 2 3 . 1 1 . 2 . . . . . . . . . . overload_power 2 | . . . . . . . . . . . . . . . . . . 1 . . . . . 1 . . . amplify_resonance 19 | . . . . . . . . . . . 3 . 1 1 3 4 . 3 . . . 2 . 1 1 . . wipe_record 24 | . . . . . . . . . . . 2 3 . 4 3 1 1 . . . . . . 8 1 . 1 disable_weapons 1 | . . . . . . . . . . . . . . . . 1 . . . . . . . . . . . reboot_system 24 | . . . . . . . . . . . 1 . . . 2 2 . 2 . . . 7 . 1 3 . 6 overwrite_iff 32 | . . . . . . . . . . . 7 . 1 3 3 6 2 2 . . . 2 . 4 2 . . streamctrl_high 1 | . . . . . . . . . . . . . . . . 1 . . . . . . . . . . . formatsys_low 3 | . . . . . . . . . . . 1 . . . 1 . . . . . . . . . . . 1 formatsys_high 3 | . . . . . . . . . . . . . . . . . . 1 . . . 1 . . 1 . . Relay Couplers Released 85 | . . . . . . . . 6 4 11 . 15 . 16 . 8 . . . . . 11 3 11 . . . Ejected 7 | . . . . . . . . . 4 . . . . . . . . . . . . . 3 . . . . Machine Destruction 74 | . . . . . . . . 6 . 11 . 15 . 12 . 8 . . . . . 11 . 11 . . . Programmers 4 | . . . . . . . . . . . . . . 4 . . . . . . . . . . . . . Attached 44 | . . . . . . . . . . . 7 2 . 5 5 5 2 2 . . . 5 . 6 4 1 . Fabnet Peak Effective % . | . . . . . . . . . . . . . . . . . . . . . . . . . . . . Robots Rewired 25 | . . . . . . . . . . . . 3 . 3 . . . 14 . . . 5 . . . . . Allies Hacked 4 | . . . . . . . . . . . . . . . . . . . . . . . . . . . 4 Hacks Repelled . | . . . . . . . . . . . . . . . . . . . . . . . . . . . . Allies | -11 -10 -10 -9 -9 -9 -8 -8 -8 -8 -8 -7 -7 -7 -7 -6 -6 -6 -6 -6 -6 -6 -6 -5 -5 -4 -4 -4 -------- Run | Jun Mat Min Mat Min Exi Min Mat Gar Mat Gar Fac Gar Fac Gar Fac Gar Fac Ext Cet Arc Hub Gar Fac Gar Fac Was Fac Total Allies 119 | . . 3 . . . . . . . 1 9 8 1 8 6 9 2 27 5 . . 9 . 6 4 19 2 Largest Group 19 | . . 3 3 . . . . . . 1 2 5 5 3 2 1 1 12 12 8 6 5 . 2 2 19 13 Highest-Rated Group 785 | . . 40 40 . . . . . . 31 40 235 235 111 32 85 32 520 785 661 512 377 . 85 77 684 461 Highest-Rated Ally 159 | . . 16 16 . . . . . . 31 29 95 95 95 32 85 32 159 153 129 96 119 . 85 56 50 47 Total Orders 16 | . . . . . . . . . . . 1 1 . . 1 1 . 2 . 4 6 . . . . . . STAY 7 | . . . . . . . . . . . . . . . . 1 . 1 . 2 3 . . . . . . FOLLOW 6 | . . . . . . . . . . . . . . . . . . 1 . 2 3 . . . . . . AID 3 | . . . . . . . . . . . 1 1 . . 1 . . . . . . . . . . . . Ally Attacks 901 | . . 13 48 . . . . . . 15 20 17 23 23 10 17 4 152 85 11 82 96 . 16 12 165 92 Total Damage 24180 | . . 125 516 . . . . . . 189 333 556 784 453 156 448 75 3169 2449 485 2779 2798 . 305 375 5820 2365 Kills 149 | . . 2 11 . . . . . . 2 2 6 9 5 2 3 1 17 18 3 22 23 . 2 . 9 12 Allies Corrupted 1 | . . . . . . . . . . . . . . . . . . . . . . . . . . . 1 Allies Melted . | . . . . . . . . . . . . . . . . . . . . . . . . . . . . Intel | -11 -10 -10 -9 -9 -9 -8 -8 -8 -8 -8 -7 -7 -7 -7 -6 -6 -6 -6 -6 -6 -6 -6 -5 -5 -4 -4 -4 ------- Run | Jun Mat Min Mat Min Exi Min Mat Gar Mat Gar Fac Gar Fac Gar Fac Gar Fac Ext Cet Arc Hub Gar Fac Gar Fac Was Fac Robot Analysis Total 4 | . 3 . 1 . . . . . . . . . . . . . . . . . . . . . . . . Derelict Logs Recovered 4 | . . 3 . 1 . . . . . . . . . . . . . . . . . . . . . . . Drone Launches . | . . . . . . . . . . . . . . . . . . . . . . . . . . . . Drone Recoveries . | . . . . . . . . . . . . . . . . . . . . . . . . . . . . Exploration | -11 -10 -10 -9 -9 -9 -8 -8 -8 -8 -8 -7 -7 -7 -7 -6 -6 -6 -6 -6 -6 -6 -6 -5 -5 -4 -4 -4 ------------- Run | Jun Mat Min Mat Min Exi Min Mat Gar Mat Gar Fac Gar Fac Gar Fac Gar Fac Ext Cet Arc Hub Gar Fac Gar Fac Was Fac Turns Passed 37077 | 11 780 982 1547 850 354 339 1013 1634 15 2015 2820 2007 442 1982 1386 1508 723 3605 440 1827 1997 1855 88 1667 2598 903 1689 Spaces Moved 13619 | 4 409 502 607 424 187 133 342 621 5 597 1174 762 208 876 512 623 321 1317 160 255 748 556 37 562 906 329 442 Core 34 | . . . . . . . . . . . . . . . . . . . . 31 . . . . . . 3 Treads 5271 | 4 205 . . . . . . 1 . 15 . . . . . . . 1110 160 224 748 556 37 562 906 329 414 Legs 3 | . . . . . . . . . . . . . . . . . . . . . . . . . . . 3 Wheels 8308 | . 204 502 607 424 187 133 342 620 5 582 1174 762 208 876 512 623 321 207 . . . . . . . . 19 Hover 3 | . . . . . . . . . . . . . . . . . . . . . . . . . . . 3 Flight . | . . . . . . . . . . . . . . . . . . . . . . . . . . . . Fastest Speed 160 | 160 160 175 175 175 190 190 175 210 285 270 175 190 195 195 195 195 195 180 240 240 240 240 240 240 240 240 240 Average Speed 226 | 160 167 175 211 189 190 190 196 242 285 285 202 195 195 195 195 197 195 238 240 630 240 240 240 240 240 240 272 Slowest Speed 3450 | 160 175 175 215 190 190 190 210 320 285 320 300 330 210 195 195 210 195 300 240 3450 240 240 240 240 240 240 2950 Overloaded Moves . | . . . . . . . . . . . . . . . . . . . . . . . . . . . . Propulsion Burnouts . | . . . . . . . . . . . . . . . . . . . . . . . . . . . . Robots Hopped . | . . . . . . . . . . . . . . . . . . . . . . . . . . . . Cave-ins Triggered . | . . . . . . . . . . . . . . . . . . . . . . . . . . . . Exploration Rate (%) 51 | 2 66 95 73 92 56 36 34 67 4 69 43 87 8 73 19 63 9 85 66 76 53 60 2 66 24 92 14 Regions Visited 27 Branch Regions 8 Pre-discovered Areas 5 | . 2 1 1 1 . . . . . . . . . . . . . . . . . . . . . . . Known Exits Taken 8 | . . . . . . 1 1 . 1 . 1 . 1 . 1 . . . . . 1 . 1 . . . . Unknown Exits Taken 10 | 1 1 1 1 1 1 . . . . . . . . . . . 1 1 1 1 . . . . . . . Scrap Searched 7 | . . 3 . 2 . 2 . . . . . . . . . . . . . . . . . . . . . Spaces Dug 182 | . 4 9 12 . . 8 21 2 . . 15 17 3 3 16 3 4 12 . . 8 7 . 2 23 . 13 Terrain Destroyed 794 | . 26 9 42 15 . 31 73 78 . 35 62 92 3 20 18 4 5 40 . 2 20 11 . 10 72 . 126 Melee 51 | . . . 1 . . . 9 2 . . 15 17 2 . . 3 . 2 . . . . . . . . . Projectile 141 | . . . . . . . 1 1 . 1 . . 1 . 18 1 5 12 . 2 13 10 . 10 41 . 25 AOE 601 | . 26 9 41 15 . 31 63 75 . 34 47 75 . 20 . . . 26 . . 7 . . . 31 . 101 Terrain Rammed . | . . . . . . . . . . . . . . . . . . . . . . . . . . . . Walls Destroyed . | . . . . . . . . . . . . . . . . . . . . . . . . . . . . Machines Disabled . | . . . . . . . . . . . . . . . . . . . . . . . . . . . . Actions | -11 -10 -10 -9 -9 -9 -8 -8 -8 -8 -8 -7 -7 -7 -7 -6 -6 -6 -6 -6 -6 -6 -6 -5 -5 -4 -4 -4 --------- Run | Jun Mat Min Mat Min Exi Min Mat Gar Mat Gar Fac Gar Fac Gar Fac Gar Fac Ext Cet Arc Hub Gar Fac Gar Fac Was Fac Total 18141 | 10 472 560 759 443 186 177 590 706 5 837 1483 1118 237 1086 840 823 385 1642 217 407 910 910 38 817 1269 429 785 Wait 1569 | . 7 19 16 . . 5 133 6 . 77 100 25 2 45 228 59 6 83 30 75 117 119 . 65 169 73 110 Move 13598 | 3 408 501 606 423 186 132 342 620 5 595 1174 761 208 875 512 622 320 1316 159 254 748 555 36 561 906 328 442 Hop . | . . . . . . . . . . . . . . . . . . . . . . . . . . . . Pick Up 243 | 1 16 4 18 . . 2 15 9 . 22 19 18 1 15 6 14 1 18 6 2 3 17 1 13 14 . 8 Fast Attach 82 | . 2 1 1 2 . . 7 1 . 5 4 3 1 2 1 1 . 4 6 6 5 9 . 6 4 2 9 Attach 104 | 3 . . 6 . . 3 5 3 . 10 4 8 . 2 3 2 1 11 . 3 2 8 . 4 9 1 16 Detach 13 | . . . . . . . . 1 . 3 . 3 . . . . . 1 . 1 . . . . 2 . 2 Swap 297 | . 9 5 18 3 . 5 22 12 . 6 30 19 10 13 14 17 8 32 1 1 3 18 . 15 12 9 15 Drop 244 | 3 8 2 17 . . 2 14 7 . 18 19 19 7 14 5 15 . 14 13 8 7 22 1 11 9 3 6 Fire 1398 | . 22 28 76 15 . 28 39 19 . 53 116 52 6 72 70 54 41 82 2 57 25 93 . 125 137 10 176 Melee 246 | . . . 1 . . . 13 10 . 14 17 70 2 3 1 23 . 35 . . . 40 . 7 7 3 . Ram . | . . . . . . . . . . . . . . . . . . . . . . . . . . . . Kick . | . . . . . . . . . . . . . . . . . . . . . . . . . . . . Crush 1 | . . . . . . . . . . . . . . . . . . . . . . 1 . . . . . Escape Stasis 205 | . . . . . . . . 18 . 34 . 80 . 24 . 16 8 7 . . . 8 . 10 . . . Rewire 141 | . . . . . . . . . . . . 60 . 21 . . . 39 . . . 20 . . . . 1 Trap . | . . . . . . . . . . . . . . . . . . . . . . . . . . . . Miscellaneous . | . . . . . . . . . . . . . . . . . . . . . . . . . . . . Route ------- -11/Junkyard -10/Materials (discovered 3 exits: *Mat / [*Min x2]) -10/Mines (discovered 2 exits: *Mat x2) -9/Materials (discovered 4 exits: *Mat x2 / *Min / *Sto) -9/Mines (discovered 3 exits: *Mat x2 / *Exi) -9/Exiles -8/Mines -8/Materials -8/Garrison (discovered 3 exits: *Mat x3) -8/Materials -8/Garrison (discovered 3 exits: *Fac x3) -7/Factory (discovered 4 exits: *Fac / Low x2 / Gar) -7/Garrison (discovered 3 exits: *Fac x3) -7/Factory -7/Garrison (discovered 3 exits: *Fac x3) -6/Factory (discovered 2 exits: *Fac / Gar) -6/Garrison (discovered 3 exits: *Fac x3) -6/Factory -6/Extension (discovered 2 exits: *Fac / *Cet) -6/Cetus (discovered 2 exits: *Fac / [*Arc]) -6/Archives (discovered 3 exits: *Fac / *Hub x2) -6/Hub_04(d) (discovered 5 exits: *Fac x4 / Gar) -6/Garrison (discovered 3 exits: *Fac x3) -5/Factory -5/Garrison (discovered 3 exits: *Fac x3) -4/Factory (discovered 2 exits: [*Res] / [*Upp]) -4/Waste -4/Factory (discovered 1 exit: [*Res]) History --------- Turn | Location | Event 6 | -11/Junkyard | Discovered new exit (range 1) 12 | -11/Junkyard | Entered Materials 12 | -10/Materials | Discovered new exit (range 7) 227 | -10/Materials | Discovered new exit (range 7) 316 | -10/Materials | Build established: Mutant 385 | -10/Materials | Discovered new exit (range 16) 792 | -10/Materials | Entered Mines 979 | -10/Mines | Learned 4 Materials zone layouts 1279 | -10/Mines | Discovered new exit (range 9) 1328 | -10/Mines | Learned 2 Materials zone layouts 1370 | -10/Mines | A weapon hastily lodged in a ceiling crevice suddenly fell to the ground 1512 | -10/Mines | Discovered new exit (range 7) 1561 | -10/Mines | Assisted by bots powering up and referring to "LRC-V3" 1774 | -10/Mines | Entered Materials 1774 | -9/Materials | Accompanied by 3 allies 1774 | -9/Materials | Evolved 2 slots: Utility x2 1775 | -9/Materials | Identified exit to Materials 1775 | -9/Materials | Identified exit to Storage 2289 | -9/Materials | Discovered new exit (range 16) 2811 | -9/Materials | Discovered exit to Materials (range 3) 3321 | -9/Materials | Entered Mines 3323 | -9/Mines | Met a Derelict bent on vengeance 3344 | -9/Mines | Learned Materials garrison access intel 3522 | -9/Mines | Discovered exit to Materials (range 7) 3839 | -9/Mines | Discovered exit to Materials (range 5) 3933 | -9/Mines | Deemed a non-threat by the Exiles lab entrance 3935 | -9/Mines | Discovered new exit (range 5) 4171 | -9/Mines | Entered Exiles 4171 | -9/Exiles | Found Exiles lab abandoned 4510 | -9/Exiles | Discovered new exit (range 10) 4525 | -9/Exiles | Entered Mines 4691 | -8/Mines | Core integrity fell below 50% 4855 | -8/Mines | Discovered exit to Materials (range 6) 4864 | -8/Mines | Entered Materials 4864 | -8/Materials | Evolved 2 slots: Propulsion x1, Utility x1 4865 | -8/Materials | Loaded intel: 1 garrison access location 5058 | -8/Materials | Destroyed 8 combat bots 5240 | -8/Materials | Repaired Hvy. Armor Plating 5279 | -8/Materials | Repaired Imp. Light Armor Plating 5306 | -8/Materials | Repaired Lgt. Armor Plating 5357 | -8/Materials | Repaired Lgt. Angular Momentum Engine 5720 | -8/Materials | Build established: Scavenger-Mutant 5877 | -8/Materials | Identified exit to Garrison 5877 | -8/Materials | Entered Garrison 6175 | -8/Garrison | Triggered checkpoint 6289 | -8/Garrison | Discovered new exit (range 8) 6306 | -8/Garrison | Discovered new exit (range 9) 6306 | -8/Garrison | Discovered new exit (range 60) 6306 | -8/Garrison | Discovered new exit (range 75) 6398 | -8/Garrison | Triggered checkpoint 6445 | -8/Garrison | Learned Materials security intel 6586 | -8/Garrison | Installed Relay Interface Framework 6608 | -8/Garrison | Build established: Hacker-Mutant 6713 | -8/Garrison | Garrison Relay disabled 7019 | -8/Garrison | Build established: Hauler-Mutant 7202 | -8/Garrison | Triggered checkpoint 7444 | -8/Garrison | Garrison Relay disabled 7511 | -8/Garrison | Entered Materials 7526 | -8/Materials | Identified exit to Garrison 7526 | -8/Materials | Entered Garrison 7572 | -8/Garrison | Expanded RIF knowledge: Patrol Navigation 7988 | -8/Garrison | Triggered checkpoint 8024 | -8/Garrison | Triggered checkpoint 8081 | -8/Garrison | Destroyed 8 combat bots 8206 | -8/Garrison | Discovered new exit (range 13) 8324 | -8/Garrison | Triggered checkpoint 8364 | -8/Garrison | Garrison Relay disabled 8419 | -8/Garrison | Rescued a captive Derelict 8790 | -8/Garrison | Triggered checkpoint 8841 | -8/Garrison | Garrison Relay disabled 8943 | -8/Garrison | Discovered new exit (range 14) 9094 | -8/Garrison | Triggered checkpoint 9272 | -8/Garrison | Triggered checkpoint 9325 | -8/Garrison | Garrison Relay disabled 9386 | -8/Garrison | Expanded RIF knowledge: Autooverride 9510 | -8/Garrison | Discovered new exit (range 11) 9541 | -8/Garrison | Entered Factory 9541 | -7/Factory | Evolved 2 slots: Power x1, Utility x1 10327 | -7/Factory | Fabricated Imp. Medium Treads? 10616 | -7/Factory | Build established: Bothacker-Mutant 11541 | -7/Factory | First assault squad dispatched 11641 | -7/Factory | Discovered new exit (range 16) 11844 | -7/Factory | Identified exit to Lower Caves 12361 | -7/Factory | Identified exit to Garrison 12361 | -7/Factory | Entered Garrison 12361 | -7/Garrison | Accompanied by 1 ally 12396 | -7/Garrison | Build established: Hauler-Mutant 12462 | -7/Garrison | Triggered checkpoint 12519 | -7/Garrison | Garrison Relay disabled 12820 | -7/Garrison | Build established: Bothacker-Mutant 12879 | -7/Garrison | Triggered checkpoint 12985 | -7/Garrison | Discovered new exit (range 10) 13007 | -7/Garrison | Expanded RIF knowledge: Alert ID Control 13079 | -7/Garrison | Triggered checkpoint 13286 | -7/Garrison | Triggered checkpoint 13448 | -7/Garrison | Discovered new exit (range 10) 13616 | -7/Garrison | Triggered checkpoint 13686 | -7/Garrison | Triggered checkpoint 13734 | -7/Garrison | Garrison Relay disabled 13777 | -7/Garrison | Garrison Relay disabled 13836 | -7/Garrison | Triggered checkpoint 13936 | -7/Garrison | Found embedded Infiltrators 14010 | -7/Garrison | Discovered new exit (range 10) 14032 | -7/Garrison | Build established: Botlord-Mutant 14068 | -7/Garrison | Triggered checkpoint 14128 | -7/Garrison | Garrison Relay disabled 14368 | -7/Garrison | Entered Factory 14368 | -7/Factory | Accompanied by 5 allies 14810 | -7/Factory | Identified exit to Garrison 14810 | -7/Factory | Entered Garrison 14810 | -7/Garrison | Accompanied by 2 allies 14890 | -7/Garrison | Triggered checkpoint 14924 | -7/Garrison | Garrison Relay disabled 15163 | -7/Garrison | Triggered checkpoint 15174 | -7/Garrison | Triggered checkpoint 15353 | -7/Garrison | Garrison Relay disabled 15359 | -7/Garrison | P-70 Sage assimilated allied AX-DW8(l) 15517 | -7/Garrison | Discovered new exit (range 12) 15620 | -7/Garrison | Triggered checkpoint 15849 | -7/Garrison | Discovered new exit (range 12) 15921 | -7/Garrison | Garrison Relay disabled 16203 | -7/Garrison | Discovered new exit (range 13) 16356 | -7/Garrison | Expanded RIF knowledge: Zone Cloak 16446 | -7/Garrison | Triggered checkpoint 16792 | -7/Garrison | Entered Factory 16792 | -6/Factory | Evolved 2 slots: Propulsion x1, Utility x1 17142 | -6/Factory | First assault squad dispatched 17533 | -6/Factory | Spotted B-75 Beast 17871 | -6/Factory | Discovered new exit (range 14) 18178 | -6/Factory | Identified exit to Garrison 18178 | -6/Factory | Entered Garrison 18280 | -6/Garrison | Triggered checkpoint 18324 | -6/Garrison | Garrison Relay disabled 18475 | -6/Garrison | Triggered checkpoint 18610 | -6/Garrison | Triggered checkpoint 18723 | -6/Garrison | Garrison Relay disabled 18746 | -6/Garrison | Discovered new exit (range 12) 18746 | -6/Garrison | Discovered new exit (range 70) 18746 | -6/Garrison | Discovered new exit (range 56) 18963 | -6/Garrison | Spotted B-75 Beast 19053 | -6/Garrison | Hijacked Beast 5a control node with streamctrl_high 19087 | -6/Garrison | Destroyed Beast 5a 19169 | -6/Garrison | Found Relay Coupler [Proto] 19173 | -6/Garrison | Found Relay Coupler [Proto] 19175 | -6/Garrison | Found Relay Coupler [Proto] 19179 | -6/Garrison | Found Relay Coupler [Proto] 19294 | -6/Garrison | Triggered checkpoint 19420 | -6/Garrison | Expanded RIF knowledge: Signal Jamming 19646 | -6/Garrison | Spotted Executioner 19686 | -6/Garrison | Entered Factory 19842 | -6/Factory | Spotted B-75 Beast 20386 | -6/Factory | Discovered new exit (range 13) 20409 | -6/Factory | Entered Extension 20537 | -6/Extension | Lost 4 parts (2p2n) 20879 | -6/Extension | Rescued a captive Derelict 20880 | -6/Extension | Rescued a captive Derelict 21143 | -6/Extension | Rescued a captive Derelict 21143 | -6/Extension | Rescued a captive Derelict 21165 | -6/Extension | Rescued a captive Derelict 21733 | -6/Extension | Spotted B-75 Beast 21748 | -6/Extension | Allies destroyed B-75 Beast 21781 | -6/Extension | Spotted B-75 Beast 21807 | -6/Extension | Allies destroyed B-75 Beast 22317 | -6/Extension | Rescued a captive Derelict 22318 | -6/Extension | Rescued a captive Derelict 22509 | -6/Extension | Disrupted transfer network 23183 | -6/Extension | Rescued A7 23957 | -6/Extension | Discovered new exit (range 10) 23959 | -6/Extension | Discovered new exit (range 6) 24014 | -6/Extension | Entered Cetus 24014 | -6/Cetus | Accompanied by 12 allies (A7) 24019 | -6/Cetus | Acquired a Cetus Manufacturing Module code from A7 24031 | -6/Cetus | Spotted Cetus Guard 24033 | -6/Cetus | Spotted Cetus Guard 24035 | -6/Cetus | Spotted Cetus Guard 24039 | -6/Cetus | Allies destroyed Cetus Guard 24045 | -6/Cetus | Allies destroyed Cetus Guard 24046 | -6/Cetus | Allies destroyed Cetus Guard 24064 | -6/Cetus | System corruption reached 10% 24176 | -6/Cetus | Started Cetus Manufacturing Module 24194 | -6/Cetus | Escorted A7 to Cetus Mainframe 24201 | -6/Cetus | Manufactured an Enhanced Grunt 24226 | -6/Cetus | Manufactured an Enhanced Grunt 24231 | -6/Cetus | Discovered new exit (range 15) 24251 | -6/Cetus | Manufactured an Enhanced Grunt 24276 | -6/Cetus | Manufactured an Enhanced Grunt 24299 | -6/Cetus | Spotted Cetus Guard 24299 | -6/Cetus | Spotted Cetus Guard 24301 | -6/Cetus | Manufactured an Enhanced Grunt 24303 | -6/Cetus | Spotted Cetus Guard 24307 | -6/Cetus | Allies destroyed Cetus Guard 24314 | -6/Cetus | Cetus Manufacturing Module disabled 24315 | -6/Cetus | Allies destroyed Cetus Guard 24315 | -6/Cetus | Spotted Cetus Guard 24317 | -6/Cetus | Discovered new exit (range 16) 24319 | -6/Cetus | Allies destroyed Cetus Guard 24331 | -6/Cetus | Met Revision 17 24454 | -6/Cetus | Entered Archives 24454 | -6/Archives | Accompanied by 8 allies (A7) 24459 | -6/Archives | Received a hacking code to weaken MAIN.C 24580 | -6/Archives | Discovered new exit (range 15) 24623 | -6/Archives | Discovered new exit (range 15) 24925 | -6/Archives | Discovered new exit (range 16) 26281 | -6/Archives | Entered Hub_04(d) 26281 | -6/Hub_04(d) | Accompanied by 6 allies 26530 | -6/Hub_04(d) | Spotted B-75 Beast 26990 | -6/Hub_04(d) | Allies destroyed B-75 Beast 27052 | -6/Hub_04(d) | Identified exit to Factory 28276 | -6/Hub_04(d) | Identified exit to Garrison 28278 | -6/Hub_04(d) | Entered Garrison 28278 | -6/Garrison | Accompanied by 4 allies 28300 | -6/Garrison | Discovered exit to Factory (range 67) 28300 | -6/Garrison | Discovered exit to Factory (range 76) 28300 | -6/Garrison | Discovered exit to Factory (range 50) 28341 | -6/Garrison | Learned Factory security intel 28435 | -6/Garrison | Garrison Relay disabled 28599 | -6/Garrison | Triggered checkpoint 28600 | -6/Garrison | Triggered checkpoint 28651 | -6/Garrison | Triggered checkpoint 28700 | -6/Garrison | Triggered checkpoint 28718 | -6/Garrison | Core integrity fell below 50% 28767 | -6/Garrison | Expanded RIF knowledge: Threat Obfuscation 28834 | -6/Garrison | Triggered checkpoint 28856 | -6/Garrison | Spotted B-75 Beast 28895 | -6/Garrison | Destroyed B-75 Beast 28926 | -6/Garrison | Found Prototype Device 28929 | -6/Garrison | Identified Exp. Thermal Shield 28972 | -6/Garrison | Garrison Relay disabled 29016 | -6/Garrison | Spotted Striker 29049 | -6/Garrison | Destroyed Striker 29069 | -6/Garrison | Rewired Executioner 29085 | -6/Garrison | Rewired Striker 29146 | -6/Garrison | Found Unknown Device 29146 | -6/Garrison | Identified Quantum Capacitor 29420 | -6/Garrison | Triggered checkpoint 29431 | -6/Garrison | Garrison Relay disabled 29535 | -6/Garrison | Found Prototype Processor 29535 | -6/Garrison | Identified Exp. Targeting Computer 29750 | -6/Garrison | Spotted B-75 Beast 29826 | -6/Garrison | Core integrity fell below 20% 29942 | -6/Garrison | Destroyed B-75 Beast 30028 | -6/Garrison | Found Relay Coupler [Proto] 30101 | -6/Garrison | Found Relay Coupler [Proto] 30133 | -6/Garrison | Entered Factory 30133 | -5/Factory | Evolved 2 slots: Utility x2 30194 | -5/Factory | Spotted B-75 Beast 30218 | -5/Factory | Identified exit to Garrison 30221 | -5/Factory | Entered Garrison 30338 | -5/Garrison | Garrison Relay disabled 30438 | -5/Garrison | Spotted B-75 Beast 30440 | -5/Garrison | Triggered checkpoint 30456 | -5/Garrison | Triggered checkpoint 30507 | -5/Garrison | Destroyed B-75 Beast 30654 | -5/Garrison | Triggered checkpoint 30778 | -5/Garrison | Expanded RIF knowledge: Command Fork 30830 | -5/Garrison | Garrison Relay disabled 31014 | -5/Garrison | Triggered checkpoint 31048 | -5/Garrison | Triggered checkpoint 31082 | -5/Garrison | Destroyed 8 combat bots 31196 | -5/Garrison | Triggered checkpoint 31217 | -5/Garrison | Discovered new exit (range 26) 31217 | -5/Garrison | Discovered new exit (range 45) 31217 | -5/Garrison | Discovered new exit (range 53) 31236 | -5/Garrison | Garrison Relay disabled 31398 | -5/Garrison | Found Quantum Capacitor 31513 | -5/Garrison | Spotted B-75 Beast 31513 | -5/Garrison | Spotted B-75 Beast 31604 | -5/Garrison | Expanded RIF knowledge: Code Merge 31888 | -5/Garrison | Entered Factory 31888 | -4/Factory | Evolved 2 slots: Utility x2 32116 | -4/Factory | Discovered new exit (range 6) 32138 | -4/Factory | First assault squad dispatched 32329 | -4/Factory | Discovered new exit (range 15) 34075 | -4/Factory | Cargo convoy interrupted 34486 | -4/Factory | Sucked down chute 34486 | -4/Factory | Entered Waste 34519 | -4/Waste | Spotted C-40 Crusher 34533 | -4/Waste | Spotted C-40 Crusher 34545 | -4/Waste | Spotted C-40 Crusher 34556 | -4/Waste | Spotted C-40 Crusher 34658 | -4/Waste | Spotted C-40 Crusher 34727 | -4/Waste | Spotted C-40 Crusher 34785 | -4/Waste | Warlord forces began an assault 34805 | -4/Waste | Allies destroyed C-40 Crusher 34868 | -4/Waste | Allies destroyed C-40 Crusher 34951 | -4/Waste | Discovered new exit (range 13) 34960 | -4/Waste | Allies destroyed C-40 Crusher 35044 | -4/Waste | Allies destroyed C-40 Crusher 35389 | -4/Waste | Entered Factory 35389 | -4/Factory | Accompanied by 13 allies 35792 | -4/Factory | P-70 Sage assimilated allied X0-8B9(g) 36104 | -4/Factory | System corruption reached 10% 36292 | -4/Factory | Found Quantum Capacitor 36472 | -4/Factory | Discovered new exit (range 5) 36603 | -4/Factory | Spotted B-86 Titan 36630 | -4/Factory | Core integrity fell below 50% 36689 | -4/Factory | Destroyed B-86 Titan 36707 | -4/Factory | Lost 10 parts (1n8u1w) 36727 | -4/Factory | Garrison activated, responded to threat 36786 | -4/Factory | Lost 5 parts (1p2n1u1w) 36902 | -4/Factory | Core integrity fell below 20% 36935 | -4/Factory | Lost 11 parts (1p2n5u3w) 37078 | -4/Factory | Destroyed by P-70 Sage with High-powered Shock Rifle Last Messages --------------- 37052_ System corrupted: Matter fused (-5). 37054_ K-01 Serf collects debris. 37056_ R-10 Processor collects Imp. Medium Armor Plating. 37058_ K-01 Serf collects debris. 37060_ K-01 Serf cleans the Power Conduit. 37060_ Med. Matter Pod melted. 37060_ K-01 Serf destroyed. 37062_ Nova Cannon destroyed. 37063_ P-70 Sage destroyed. 37064_ Power failure, Rnf. Antimatter Reactor shutdown. 37064_ Linear Gravjet destroyed. 37065_ Neutron Cannon broken. 37065_ Overheating: Short circuit. 37066_ K-01 Serf cleans the Power Conduit. 37067_ Linear Gravjet destroyed. 37069_ K-01 Serf collects debris. 37072_ R-10 Processor collects Imp. Heat Sink. 37073_ #CX YLPU0H: